[Event "*** Titled Tuesday Blitz"]
[Site "Chess.com"]
[Date "2021.02.09"]
[Round "5"]
[White "sorrm8thatscheckm8"]
[Black "iwanyu"]
[Result "1-0"]
[WhiteElo "2596"]
[BlackElo "2805"]
[TimeControl "180+1"]
[EndTime "10:56:31 PST"]
[Termination "sorrm8thatscheckm8 won by checkmate"]

1. d4 {[%clk 0:03:00.7]} 1... Nf6 {[%clk 0:03:00]} 2. c4 {[%clk 0:03:01.1]} 2...
e6 {[%clk 0:03:00.9]} 3. Nf3 {[%clk 0:03:00.8]} 3... d5 {[%clk 0:03:00.9]} 4.
Nc3 {[%clk 0:02:59.5]} 4... Bb4 {[%clk 0:02:56.7]} 5. Qa4+ {[%clk 0:02:59.9]}
5... Nc6 {[%clk 0:02:56.6]} 6. e3 {[%clk 0:03:00.6]} 6... O-O {[%clk 0:02:55.3]}
7. Qc2 {[%clk 0:03:00.2]} 7... Re8 {[%clk 0:02:47.4]} 8. Bd2 {[%clk 0:02:59.7]}
8... e5 {[%clk 0:02:35.4]} 9. dxe5 {[%clk 0:03:00]} 9... Nxe5 {[%clk 0:02:34.7]}
10. cxd5 {[%clk 0:03:00.1]} 10... Nxf3+ {[%clk 0:02:03.5]} 11. gxf3 {[%clk
0:03:00.6]} 11... Nxd5 {[%clk 0:02:04.2]} 12. Nxd5 {[%clk 0:02:57]} 12... Qxd5
{[%clk 0:02:00.3]} 13. Bxb4 {[%clk 0:02:55.9]} 13... Qxf3 {[%clk 0:01:59]} 14.
Rg1 {[%clk 0:02:55.9]} 14... Bf5 {[%clk 0:01:54.8]} 15. Qe2 {[%clk 0:02:51.4]}
15... Qd5 {[%clk 0:01:44.1]} 16. Bc3 {[%clk 0:02:50.1]} 16... Bg6 {[%clk
0:01:44]} 17. h4 {[%clk 0:02:45.4]} 17... Rad8 {[%clk 0:01:32.1]} 18. h5 {[%clk
0:02:38.2]} 18... Bxh5 {[%clk 0:01:31.1]} 19. Rxg7+ {[%clk 0:02:36.1]} 19... Kf8
{[%clk 0:01:29.7]} 20. Qc2 {[%clk 0:02:11]} 20... Bg6 {[%clk 0:01:24.7]} 21. Qd1
{[%clk 0:01:41.4]} 21... Qe4 {[%clk 0:01:04]} 22. Qe2 {[%clk 0:01:34.1]} 22...
Qh4 {[%clk 0:00:51.4]} 23. Rd1 {[%clk 0:01:22.6]} 23... Rxd1+ {[%clk 0:00:49.6]}
24. Qxd1 {[%clk 0:01:23.5]} 24... Rxe3+ {[%clk 0:00:47.6]} 25. Be2 {[%clk
0:01:17.9]} 25... Re6 {[%clk 0:00:26.6]} 26. Qd5 {[%clk 0:00:58.4]} 26... Qh5
{[%clk 0:00:11.8]} 27. Qd8+ {[%clk 0:00:48.5]} 27... Re8 {[%clk 0:00:12.2]} 28.
Rg8+ {[%clk 0:00:44.8]} 28... Kxg8 {[%clk 0:00:12.4]} 29. Qxe8# {[%clk 0:00:45]}
1-0

[Event "*** Titled Tuesday Blitz"]
[Site "Chess.com"]
[Date "2021.02.09"]
[Round "5"]
[White "TheCairnTerrier"]
[Black "sbouchet"]
[Result "0-1"]
[WhiteElo "2161"]
[BlackElo "2342"]
[TimeControl "180+1"]
[EndTime "10:56:31 PST"]
[Termination "sbouchet won by resignation"]

1. e4 {[%clk 0:03:00.9]} 1... c5 {[%clk 0:02:58.2]} 2. Nf3 {[%clk 0:03:00.9]}
2... g6 {[%clk 0:02:57.2]} 3. g3 {[%clk 0:02:58]} 3... Bg7 {[%clk 0:02:57]} 4.
Bg2 {[%clk 0:02:58.3]} 4... Nc6 {[%clk 0:02:57.6]} 5. O-O {[%clk 0:02:58.5]}
5... e5 {[%clk 0:02:58.2]} 6. d3 {[%clk 0:02:55]} 6... Nge7 {[%clk 0:02:58.5]}
7. Be3 {[%clk 0:02:47.5]} 7... b6 {[%clk 0:02:58.1]} 8. Qd2 {[%clk 0:02:08.9]}
8... O-O {[%clk 0:02:56.9]} 9. Bh6 {[%clk 0:02:06.8]} 9... d6 {[%clk 0:02:57]}
10. Bxg7 {[%clk 0:02:04.5]} 10... Kxg7 {[%clk 0:02:57.9]} 11. Nc3 {[%clk
0:01:44.4]} 11... f5 {[%clk 0:02:57.7]} 12. exf5 {[%clk 0:01:39.1]} 12... Nxf5
{[%clk 0:02:56.6]} 13. Nxe5 {[%clk 0:01:35.5]} 13... Nxe5 {[%clk 0:02:52.5]} 14.
Bxa8 {[%clk 0:01:34.9]} 14... Nd4 {[%clk 0:02:52.8]} 15. f4 {[%clk 0:01:27.8]}
15... Bg4 {[%clk 0:02:40.4]} 16. Bg2 {[%clk 0:00:51.2]} 16... Nef3+ {[%clk
0:02:36.4]} 17. Bxf3 {[%clk 0:00:51.4]} 17... Nxf3+ {[%clk 0:02:37.3]} 18. Rxf3
{[%clk 0:00:51.8]} 18... Bxf3 {[%clk 0:02:38.2]} 19. Qe3 {[%clk 0:00:52.3]}
19... Bc6 {[%clk 0:02:34.8]} 20. Re1 {[%clk 0:00:43.4]} 20... Re8 {[%clk
0:02:34.8]} 21. Qf2 {[%clk 0:00:43.7]} 21... Rxe1+ {[%clk 0:02:35.4]} 22. Qxe1
{[%clk 0:00:44.3]} 22... Qf6 {[%clk 0:02:35.8]} 23. Qe3 {[%clk 0:00:39.3]} 23...
d5 {[%clk 0:02:21.2]} 24. Qe5 {[%clk 0:00:29]} 24... d4 {[%clk 0:02:21.2]} 25.
Qxf6+ {[%clk 0:00:26.8]} 25... Kxf6 {[%clk 0:02:20.3]} 26. Ne4+ {[%clk
0:00:26.2]} 26... Kf5 {[%clk 0:02:17.4]} 27. h3 {[%clk 0:00:22.5]} 27... Bxe4
{[%clk 0:02:16.3]} 28. dxe4+ {[%clk 0:00:20.5]} 28... Kxe4 {[%clk 0:02:17.2]}
29. Kf2 {[%clk 0:00:20.9]} 29... c4 {[%clk 0:02:10.8]} 30. Ke2 {[%clk 0:00:20]}
30... b5 {[%clk 0:02:08.8]} 31. h4 {[%clk 0:00:17.4]} 31... h5 {[%clk
0:02:07.3]} 32. Kf2 {[%clk 0:00:15.5]} 32... a5 {[%clk 0:02:07]} 33. a3 {[%clk
0:00:14.9]} 33... b4 {[%clk 0:01:59.5]} 34. axb4 {[%clk 0:00:14.5]} 34... axb4
{[%clk 0:02:00.4]} 35. Ke2 {[%clk 0:00:14.2]} 35... c3 {[%clk 0:01:30.7]} 36. b3
{[%clk 0:00:12.2]} 36... d3+ {[%clk 0:01:30.3]} 37. cxd3+ {[%clk 0:00:11.7]}
37... Kd4 {[%clk 0:01:31]} 38. g4 {[%clk 0:00:11.1]} 38... hxg4 {[%clk
0:01:29.7]} 39. f5 {[%clk 0:00:09.6]} 39... c2 {[%clk 0:01:26.2]} 40. Kd2 {[%clk
0:00:09.6]} 40... g3 {[%clk 0:01:25.4]} 41. f6 {[%clk 0:00:05.7]} 41... g2
{[%clk 0:01:23.9]} 42. f7 {[%clk 0:00:04.2]} 42... c1=Q+ {[%clk 0:01:23.3]} 43.
Kxc1 {[%clk 0:00:03.6]} 43... g1=Q+ {[%clk 0:01:23.9]} 44. Kb2 {[%clk
0:00:03.4]} 44... Qf2+ {[%clk 0:01:24]} 45. Kb1 {[%clk 0:00:03.6]} 45... Qxf7
{[%clk 0:01:23.6]} 0-1

[Event "*** Titled Tuesday Blitz"]
[Site "Chess.com"]
[Date "2021.02.09"]
[Round "5"]
[White "Dave_ChessMate"]
[Black "Mr_Sinigami"]
[Result "0-1"]
[WhiteElo "2390"]
[BlackElo "2651"]
[TimeControl "180+1"]
[EndTime "10:56:33 PST"]
[Termination "Mr_Sinigami won by resignation"]

1. e4 {[%clk 0:03:00.9]} 1... c5 {[%clk 0:02:58.5]} 2. Nc3 {[%clk 0:02:59.1]}
2... Nc6 {[%clk 0:02:53.6]} 3. Bb5 {[%clk 0:02:59]} 3... g6 {[%clk 0:02:39.2]}
4. Bxc6 {[%clk 0:02:58.5]} 4... dxc6 {[%clk 0:02:39.1]} 5. f4 {[%clk 0:02:58.2]}
5... Bg7 {[%clk 0:02:38.9]} 6. Nf3 {[%clk 0:02:58]} 6... Nf6 {[%clk 0:02:38]} 7.
d3 {[%clk 0:02:57.3]} 7... Nd7 {[%clk 0:02:32.1]} 8. O-O {[%clk 0:02:57.7]} 8...
Nf8 {[%clk 0:02:31.3]} 9. Be3 {[%clk 0:02:52.3]} 9... Ne6 {[%clk 0:02:28.6]} 10.
h3 {[%clk 0:02:48.6]} 10... O-O {[%clk 0:02:27.6]} 11. Qe1 {[%clk 0:02:47.7]}
11... Nd4 {[%clk 0:02:24.1]} 12. Qf2 {[%clk 0:02:43.4]} 12... b6 {[%clk
0:02:17.1]} 13. Rad1 {[%clk 0:02:38.4]} 13... a5 {[%clk 0:02:09.5]} 14. Bxd4
{[%clk 0:02:33.3]} 14... cxd4 {[%clk 0:01:47.3]} 15. Ne2 {[%clk 0:02:33]} 15...
c5 {[%clk 0:01:47.5]} 16. c3 {[%clk 0:02:33.1]} 16... dxc3 {[%clk 0:01:43.2]}
17. bxc3 {[%clk 0:02:34]} 17... Ba6 {[%clk 0:01:40.5]} 18. d4 {[%clk 0:02:31.5]}
18... cxd4 {[%clk 0:01:32.5]} 19. cxd4 {[%clk 0:02:32.4]} 19... Rc8 {[%clk
0:01:32.2]} 20. Rd2 {[%clk 0:02:32.4]} 20... f5 {[%clk 0:01:24.6]} 21. e5 {[%clk
0:02:26.4]} 21... Qd5 {[%clk 0:01:24]} 22. Rfd1 {[%clk 0:02:11.4]} 22... Rfd8
{[%clk 0:01:22.7]} 23. Qh4 {[%clk 0:02:07.6]} 23... e6 {[%clk 0:01:18.8]} 24.
Ng5 {[%clk 0:01:55.6]} 24... h6 {[%clk 0:01:17.8]} 25. Nf3 {[%clk 0:01:55.7]}
25... Kf7 {[%clk 0:01:13.2]} 26. Qg3 {[%clk 0:01:52.9]} 26... Rg8 {[%clk
0:01:03.9]} 27. Nh4 {[%clk 0:01:46]} 27... Bf8 {[%clk 0:01:03.5]} 28. Nc3 {[%clk
0:01:43.4]} 28... Qc4 {[%clk 0:00:54.1]} 29. d5 {[%clk 0:01:37.7]} 29... Qxc3
{[%clk 0:00:39.2]} 30. dxe6+ {[%clk 0:01:37.6]} 30... Kxe6 {[%clk 0:00:39.4]}
31. Rd6+ {[%clk 0:01:26.1]} 31... Bxd6 {[%clk 0:00:38.9]} 32. Rxd6+ {[%clk
0:01:27]} 32... Ke7 {[%clk 0:00:38.7]} 33. Nxg6+ {[%clk 0:01:24.4]} 33... Rxg6
{[%clk 0:00:38.2]} 34. Qxg6 {[%clk 0:01:23.8]} 34... Qe3+ {[%clk 0:00:37.8]} 35.
Kh2 {[%clk 0:01:19.6]} 35... Qxf4+ {[%clk 0:00:37]} 36. Qg3 {[%clk 0:01:20]}
36... Qxg3+ {[%clk 0:00:32.9]} 37. Kxg3 {[%clk 0:01:20.9]} 37... Rb8 {[%clk
0:00:27.3]} 38. Kf4 {[%clk 0:01:20.6]} 38... Bc4 {[%clk 0:00:26.4]} 39. a3
{[%clk 0:01:17.9]} 39... Be6 {[%clk 0:00:26.1]} 40. Rc6 {[%clk 0:01:16.3]} 40...
b5 {[%clk 0:00:23.9]} 41. Rc7+ {[%clk 0:01:16.7]} 41... Bd7 {[%clk 0:00:22.8]}
42. Ra7 {[%clk 0:01:16]} 42... b4 {[%clk 0:00:22.7]} 43. axb4 {[%clk 0:01:16.1]}
43... axb4 {[%clk 0:00:22.8]} 44. Ra6 {[%clk 0:01:16.8]} 44... b3 {[%clk
0:00:22]} 45. e6 {[%clk 0:01:15.5]} 45... Bxe6 {[%clk 0:00:21.6]} 46. Ke5 {[%clk
0:01:15.6]} 46... Rb5+ {[%clk 0:00:21.3]} 47. Kd4 {[%clk 0:01:16.5]} 47... b2
{[%clk 0:00:21.3]} 0-1

[Event "*** Titled Tuesday Blitz"]
[Site "Chess.com"]
[Date "2021.02.09"]
[Round "5"]
[White "bascheyaro"]
[Black "GOGIEFF"]
[Result "1/2-1/2"]
[WhiteElo "2746"]
[BlackElo "2896"]
[TimeControl "180+1"]
[EndTime "10:56:36 PST"]
[Termination "Game drawn by repetition"]

1. d4 {[%clk 0:03:00.9]} 1... d5 {[%clk 0:02:59.6]} 2. c4 {[%clk 0:03:01]} 2...
c6 {[%clk 0:02:59.9]} 3. Nf3 {[%clk 0:03:00.3]} 3... Nf6 {[%clk 0:03:00.1]} 4.
e3 {[%clk 0:03:00]} 4... Bf5 {[%clk 0:02:59.7]} 5. Nc3 {[%clk 0:03:00.4]} 5...
e6 {[%clk 0:02:59.9]} 6. Qb3 {[%clk 0:02:58.4]} 6... Qc8 {[%clk 0:02:52.2]} 7.
Nh4 {[%clk 0:02:56.8]} 7... Be4 {[%clk 0:02:50]} 8. f3 {[%clk 0:02:56]} 8... Bg6
{[%clk 0:02:49.7]} 9. Bd2 {[%clk 0:02:50.5]} 9... Nbd7 {[%clk 0:02:42.8]} 10.
Rc1 {[%clk 0:02:49]} 10... Be7 {[%clk 0:02:42.2]} 11. Nxg6 {[%clk 0:02:46.8]}
11... hxg6 {[%clk 0:02:41.9]} 12. Bd3 {[%clk 0:02:45.1]} 12... dxc4 {[%clk
0:02:29.4]} 13. Bxc4 {[%clk 0:02:43.3]} 13... b5 {[%clk 0:02:29.3]} 14. Bd3
{[%clk 0:02:36.9]} 14... a6 {[%clk 0:02:26.7]} 15. O-O {[%clk 0:02:30.5]} 15...
c5 {[%clk 0:02:25.4]} 16. Qd1 {[%clk 0:01:56.9]} 16... Qb8 {[%clk 0:02:22.2]}
17. f4 {[%clk 0:01:55.9]} 17... cxd4 {[%clk 0:02:21.7]} 18. exd4 {[%clk
0:01:56.8]} 18... O-O {[%clk 0:02:16.1]} 19. Be3 {[%clk 0:01:49.1]} 19... Nb6
{[%clk 0:02:14.4]} 20. Qf3 {[%clk 0:01:45.4]} 20... Rd8 {[%clk 0:02:12.2]} 21.
Ne4 {[%clk 0:01:40.1]} 21... Nbd5 {[%clk 0:02:08.8]} 22. Bd2 {[%clk 0:01:37.6]}
22... Nxe4 {[%clk 0:02:00.9]} 23. Bxe4 {[%clk 0:01:37.5]} 23... Qb6 {[%clk
0:01:59]} 24. Be3 {[%clk 0:01:33.1]} 24... Nxe3 {[%clk 0:01:55.6]} 25. Qxe3
{[%clk 0:01:32.4]} 25... Bf6 {[%clk 0:01:55.9]} 26. Rfd1 {[%clk 0:01:31.1]}
26... Rxd4 {[%clk 0:01:53]} 27. Kf2 {[%clk 0:01:19.7]} 27... Rad8 {[%clk
0:01:51.8]} 28. Kf3 {[%clk 0:00:37.9]} 28... Rxd1 {[%clk 0:01:47.4]} 29. Qxb6
{[%clk 0:00:37.9]} 29... Rxc1 {[%clk 0:01:47.7]} 30. Qxa6 {[%clk 0:00:37.9]}
30... Bxb2 {[%clk 0:01:44.8]} 31. Qxb5 {[%clk 0:00:31.8]} 31... Rc3+ {[%clk
0:01:44.8]} 32. Ke2 {[%clk 0:00:31.7]} 32... Bc1 {[%clk 0:01:43.1]} 33. Qa5
{[%clk 0:00:19.9]} 33... Re3+ {[%clk 0:01:33.8]} 34. Kf2 {[%clk 0:00:17.3]}
34... Rd2+ {[%clk 0:01:32.4]} 35. Kf1 {[%clk 0:00:17.7]} 35... Kh7 {[%clk
0:01:17]} 36. Qh5+ {[%clk 0:00:16.7]} 36... Kg8 {[%clk 0:01:16.8]} 37. Qa5
{[%clk 0:00:17.2]} 37... Rd1+ {[%clk 0:00:53.1]} 38. Kf2 {[%clk 0:00:17]} 38...
Rd2+ {[%clk 0:00:51.8]} 39. Kf1 {[%clk 0:00:16.8]} 1/2-1/2

[Event "*** Titled Tuesday Blitz"]
[Site "Chess.com"]
[Date "2021.02.09"]
[Round "5"]
[White "Darius321"]
[Black "PriSachu"]
[Result "1-0"]
[WhiteElo "2283"]
[BlackElo "2496"]
[TimeControl "180+1"]
[EndTime "10:56:36 PST"]
[Termination "Darius321 won by resignation"]

1. e4 {[%clk 0:03:00.9]} 1... e5 {[%clk 0:02:59.2]} 2. Nf3 {[%clk 0:03:00.1]}
2... Nc6 {[%clk 0:02:58.7]} 3. Bc4 {[%clk 0:03:00.7]} 3... Nf6 {[%clk
0:02:58.2]} 4. d3 {[%clk 0:03:00.9]} 4... Be7 {[%clk 0:02:58.2]} 5. Nbd2 {[%clk
0:03:00.9]} 5... O-O {[%clk 0:02:58.1]} 6. Nf1 {[%clk 0:03:00.1]} 6... d5 {[%clk
0:02:53.1]} 7. exd5 {[%clk 0:02:59.9]} 7... Nxd5 {[%clk 0:02:53]} 8. Ne3 {[%clk
0:02:56.5]} 8... Be6 {[%clk 0:02:43.3]} 9. O-O {[%clk 0:02:52.4]} 9... Nxe3
{[%clk 0:02:41.6]} 10. Bxe3 {[%clk 0:02:47.1]} 10... Bxc4 {[%clk 0:02:41.9]} 11.
dxc4 {[%clk 0:02:48]} 11... Qxd1 {[%clk 0:02:37.9]} 12. Raxd1 {[%clk 0:02:47.1]}
12... Rfd8 {[%clk 0:02:36.6]} 13. a3 {[%clk 0:02:35]} 13... f6 {[%clk
0:02:30.6]} 14. Rd5 {[%clk 0:02:34.5]} 14... Kf7 {[%clk 0:02:28.5]} 15. Rfd1
{[%clk 0:02:33.9]} 15... Ke6 {[%clk 0:02:28.5]} 16. g4 {[%clk 0:02:29.5]} 16...
b6 {[%clk 0:02:02.6]} 17. b4 {[%clk 0:02:21.6]} 17... a5 {[%clk 0:01:52.5]} 18.
b5 {[%clk 0:02:21.1]} 18... Na7 {[%clk 0:01:52.5]} 19. a4 {[%clk 0:02:13.2]}
19... Rxd5 {[%clk 0:01:43.3]} 20. cxd5+ {[%clk 0:02:11.8]} 20... Kf7 {[%clk
0:01:43.4]} 21. Nd2 {[%clk 0:01:59.6]} 21... Rd8 {[%clk 0:01:41]} 22. Nc4 {[%clk
0:01:57.5]} 22... Nc8 {[%clk 0:01:40]} 23. f3 {[%clk 0:01:56.8]} 23... Nd6
{[%clk 0:01:30.7]} 24. Nxd6+ {[%clk 0:01:55.8]} 24... Bxd6 {[%clk 0:01:28.9]}
25. c4 {[%clk 0:01:55.6]} 25... g6 {[%clk 0:01:24.1]} 26. h3 {[%clk 0:01:48.7]}
26... f5 {[%clk 0:01:21.1]} 27. Kg2 {[%clk 0:01:48.6]} 27... Kf6 {[%clk
0:01:20]} 28. Bf2 {[%clk 0:01:38.1]} 28... h5 {[%clk 0:01:07.6]} 29. gxh5 {[%clk
0:01:31]} 29... g5 {[%clk 0:01:07.2]} 30. h4 {[%clk 0:01:26.9]} 30... g4 {[%clk
0:00:58.5]} 31. fxg4 {[%clk 0:01:24.5]} 31... fxg4 {[%clk 0:00:58.8]} 32. Be3
{[%clk 0:01:23.5]} 32... Kf5 {[%clk 0:00:57.4]} 33. h6 {[%clk 0:01:16.3]} 33...
Ke4 {[%clk 0:00:54.4]} 34. Bg5 {[%clk 0:01:13]} 34... Rf8 {[%clk 0:00:44.1]} 35.
Kg3 {[%clk 0:01:10.7]} 35... Rh8 {[%clk 0:00:08]} 36. Kxg4 {[%clk 0:01:06.5]}
36... Bf8 {[%clk 0:00:04.2]} 37. Kh5 {[%clk 0:01:05.7]} 1-0

[Event "*** Titled Tuesday Blitz"]
[Site "Chess.com"]
[Date "2021.02.09"]
[Round "5"]
[White "Fiona"]
[Black "MillyNeuf"]
[Result "0-1"]
[WhiteElo "2115"]
[BlackElo "2316"]
[TimeControl "180+1"]
[EndTime "10:56:37 PST"]
[Termination "MillyNeuf won by resignation"]

1. e4 {[%clk 0:03:00.9]} 1... c5 {[%clk 0:03:00]} 2. Nc3 {[%clk 0:02:55.4]} 2...
a6 {[%clk 0:02:58.4]} 3. f4 {[%clk 0:02:55.5]} 3... b5 {[%clk 0:02:58.1]} 4. Nf3
{[%clk 0:02:47.3]} 4... Bb7 {[%clk 0:02:56.6]} 5. d3 {[%clk 0:02:47.2]} 5... e6
{[%clk 0:02:50.8]} 6. g3 {[%clk 0:02:45.4]} 6... d5 {[%clk 0:02:49.1]} 7. e5
{[%clk 0:02:35]} 7... h5 {[%clk 0:02:42.8]} 8. Bg2 {[%clk 0:02:34]} 8... Nc6
{[%clk 0:02:38.9]} 9. Ne2 {[%clk 0:02:23.9]} 9... b4 {[%clk 0:02:36]} 10. Be3
{[%clk 0:02:17.6]} 10... Be7 {[%clk 0:02:33.8]} 11. c3 {[%clk 0:02:11]} 11... a5
{[%clk 0:02:30.6]} 12. d4 {[%clk 0:02:03.8]} 12... c4 {[%clk 0:02:23.9]} 13. O-O
{[%clk 0:01:55.1]} 13... Nh6 {[%clk 0:02:19.8]} 14. Bh3 {[%clk 0:01:36.2]} 14...
a4 {[%clk 0:02:13.4]} 15. Qe1 {[%clk 0:01:24.5]} 15... a3 {[%clk 0:02:11.1]} 16.
bxa3 {[%clk 0:01:22.9]} 16... bxc3 {[%clk 0:02:09.9]} 17. Qxc3 {[%clk
0:01:00.7]} 17... Bxa3 {[%clk 0:02:07.5]} 18. Rab1 {[%clk 0:00:58.4]} 18... Qc7
{[%clk 0:01:59.6]} 19. Nh4 {[%clk 0:00:49.8]} 19... g6 {[%clk 0:01:52.3]} 20. f5
{[%clk 0:00:41.3]} 20... Nxf5 {[%clk 0:01:48.6]} 21. Nxf5 {[%clk 0:00:35.7]}
21... gxf5 {[%clk 0:01:48.1]} 22. Nf4 {[%clk 0:00:27.5]} 22... Be7 {[%clk
0:01:44.1]} 23. Qb2 {[%clk 0:00:23.7]} 23... Rb8 {[%clk 0:01:41]} 24. Qe2 {[%clk
0:00:22.8]} 24... Ba6 {[%clk 0:01:19.1]} 25. Rxb8+ {[%clk 0:00:20]} 25... Qxb8
{[%clk 0:01:20]} 26. Nxh5 {[%clk 0:00:17.2]} 26... Qa7 {[%clk 0:01:11.6]} 27.
Nf6+ {[%clk 0:00:13.2]} 27... Bxf6 {[%clk 0:01:10.9]} 28. exf6 {[%clk
0:00:14.1]} 28... Rxh3 {[%clk 0:01:08.8]} 29. Qg2 {[%clk 0:00:09.3]} 29... Rh8
{[%clk 0:01:07.9]} 30. g4 {[%clk 0:00:09.6]} 30... c3 {[%clk 0:00:52.5]} 31. Rc1
{[%clk 0:00:08.8]} 31... f4 {[%clk 0:00:48.9]} 32. Bxf4 {[%clk 0:00:08.1]} 32...
Qxd4+ {[%clk 0:00:47.9]} 0-1

[Event "*** Titled Tuesday Blitz"]
[Site "Chess.com"]
[Date "2021.02.09"]
[Round "5"]
[White "Evgeny81"]
[Black "louis198"]
[Result "1-0"]
[WhiteElo "2740"]
[BlackElo "2561"]
[TimeControl "180+1"]
[EndTime "10:56:38 PST"]
[Termination "Evgeny81 won by resignation"]

1. e4 {[%clk 0:03:00.9]} 1... e6 {[%clk 0:03:00.9]} 2. d4 {[%clk 0:03:00.2]}
2... d5 {[%clk 0:03:01.8]} 3. Nd2 {[%clk 0:03:00.9]} 3... Nc6 {[%clk 0:02:59.5]}
4. Ngf3 {[%clk 0:02:56.7]} 4... Nf6 {[%clk 0:02:58.5]} 5. e5 {[%clk 0:02:57.1]}
5... Nd7 {[%clk 0:02:58.3]} 6. Nb3 {[%clk 0:02:57.8]} 6... f6 {[%clk 0:02:56.7]}
7. Bb5 {[%clk 0:02:54.6]} 7... fxe5 {[%clk 0:02:55.6]} 8. dxe5 {[%clk
0:02:51.3]} 8... Be7 {[%clk 0:02:55.1]} 9. O-O {[%clk 0:02:44.7]} 9... O-O
{[%clk 0:02:54.6]} 10. Re1 {[%clk 0:02:43.9]} 10... Nb6 {[%clk 0:02:42.6]} 11.
a4 {[%clk 0:02:37.1]} 11... a5 {[%clk 0:02:36.8]} 12. Be3 {[%clk 0:02:33.7]}
12... Bd7 {[%clk 0:02:30.8]} 13. Bxb6 {[%clk 0:02:25.5]} 13... cxb6 {[%clk
0:02:31.7]} 14. Nbd4 {[%clk 0:02:25.4]} 14... Bc5 {[%clk 0:02:22.8]} 15. c3
{[%clk 0:02:23.5]} 15... Qe7 {[%clk 0:02:14.4]} 16. Qe2 {[%clk 0:02:20.5]} 16...
Be8 {[%clk 0:02:09.8]} 17. h3 {[%clk 0:02:10.8]} 17... Bh5 {[%clk 0:01:52.8]}
18. g4 {[%clk 0:02:09]} 18... Be8 {[%clk 0:01:43.8]} 19. Qe3 {[%clk 0:02:05.1]}
19... Nxd4 {[%clk 0:01:36.5]} 20. cxd4 {[%clk 0:01:52.8]} 20... Bb4 {[%clk
0:01:25.4]} 21. Red1 {[%clk 0:01:40.5]} 21... Bxb5 {[%clk 0:01:24.5]} 22. axb5
{[%clk 0:01:41.4]} 22... Qd7 {[%clk 0:01:20.2]} 23. Qd3 {[%clk 0:01:38.8]} 23...
h6 {[%clk 0:01:20]} 24. Nh4 {[%clk 0:01:32.6]} 24... Qf7 {[%clk 0:01:06]} 25.
Rf1 {[%clk 0:01:30]} 25... Rfc8 {[%clk 0:00:59.6]} 26. f4 {[%clk 0:01:18.4]}
26... Rc4 {[%clk 0:00:58.1]} 27. Kg2 {[%clk 0:01:16]} 27... Rac8 {[%clk
0:00:57.1]} 28. Rf2 {[%clk 0:01:16.4]} 28... Be7 {[%clk 0:00:14.4]} 29. Ng6
{[%clk 0:01:15.4]} 29... Rb4 {[%clk 0:00:14.4]} 30. f5 {[%clk 0:01:11.7]} 30...
Rcc4 {[%clk 0:00:11.6]} 31. fxe6 {[%clk 0:01:01.1]} 31... Qxe6 {[%clk
0:00:11.9]} 32. Qf5 {[%clk 0:01:00.5]} 32... Qxf5 {[%clk 0:00:02.6]} 33. Nxe7+
{[%clk 0:01:00.3]} 33... Kh7 {[%clk 0:00:02.8]} 34. Nxf5 {[%clk 0:00:57.5]}
34... Rxb5 {[%clk 0:00:03]} 35. Nd6 {[%clk 0:00:57.3]} 1-0

[Event "*** Titled Tuesday Blitz"]
[Site "Chess.com"]
[Date "2021.02.09"]
[Round "5"]
[White "Alohamora11"]
[Black "Ladislav1969"]
[Result "1-0"]
[WhiteElo "2477"]
[BlackElo "2313"]
[TimeControl "180+1"]
[EndTime "10:56:38 PST"]
[Termination "Alohamora11 won by resignation"]

1. e4 {[%clk 0:03:00.9]} 1... c5 {[%clk 0:02:59.8]} 2. Nf3 {[%clk 0:02:46.8]}
2... e6 {[%clk 0:03:00.7]} 3. d4 {[%clk 0:02:46.6]} 3... cxd4 {[%clk 0:03:01.6]}
4. Nxd4 {[%clk 0:02:47.5]} 4... a6 {[%clk 0:03:01.8]} 5. Nc3 {[%clk 0:02:47.9]}
5... b5 {[%clk 0:02:59.9]} 6. g3 {[%clk 0:02:47.5]} 6... Bb7 {[%clk 0:02:58.5]}
7. Bg2 {[%clk 0:02:47.2]} 7... b4 {[%clk 0:02:53.5]} 8. Na4 {[%clk 0:02:45.4]}
8... Nf6 {[%clk 0:02:53.3]} 9. O-O {[%clk 0:02:45.1]} 9... Nxe4 {[%clk
0:02:35.1]} 10. Re1 {[%clk 0:02:15.8]} 10... Nd6 {[%clk 0:02:27.4]} 11. Qg4
{[%clk 0:02:02.2]} 11... Bxg2 {[%clk 0:02:21.3]} 12. Kxg2 {[%clk 0:02:03.1]}
12... Qa5 {[%clk 0:02:12.9]} 13. b3 {[%clk 0:01:46.1]} 13... Qd5+ {[%clk
0:02:08.4]} 14. Kg1 {[%clk 0:01:44.1]} 14... Nc6 {[%clk 0:02:03.7]} 15. Bb2
{[%clk 0:01:35.5]} 15... Nxd4 {[%clk 0:01:48.7]} 16. Bxd4 {[%clk 0:01:36.4]}
16... Nf5 {[%clk 0:01:48.7]} 17. Rad1 {[%clk 0:01:27.3]} 17... Nxd4 {[%clk
0:01:38.8]} 18. Rxd4 {[%clk 0:01:28.2]} 18... Qc6 {[%clk 0:01:38.2]} 19. Rc4
{[%clk 0:01:20.3]} 19... Qb7 {[%clk 0:01:23.6]} 20. h4 {[%clk 0:01:02.2]} 20...
h5 {[%clk 0:01:22.6]} 21. Qg5 {[%clk 0:01:00.6]} 21... Rh6 {[%clk 0:01:13.9]}
22. Nc5 {[%clk 0:00:59.1]} 22... Bxc5 {[%clk 0:01:09.4]} 23. Rxc5 {[%clk
0:00:56.7]} 23... Kf8 {[%clk 0:00:52.8]} 24. Qd2 {[%clk 0:00:49.5]} 24... d5
{[%clk 0:00:47.9]} 25. c4 {[%clk 0:00:47.3]} 25... dxc4 {[%clk 0:00:44.6]} 26.
Rxc4 {[%clk 0:00:44.5]} 26... Rb8 {[%clk 0:00:42.7]} 27. Qd6+ {[%clk 0:00:43.6]}
27... Kg8 {[%clk 0:00:41.5]} 28. Rc7 {[%clk 0:00:42.2]} 28... Qb6 {[%clk
0:00:31.1]} 29. Rc8+ {[%clk 0:00:37.5]} 29... Kh7 {[%clk 0:00:26]} 30. Qxb8
{[%clk 0:00:37.2]} 30... Qd4 {[%clk 0:00:21.4]} 31. Rh8+ {[%clk 0:00:35.3]}
31... Kg6 {[%clk 0:00:21.5]} 32. Rxh6+ {[%clk 0:00:35.6]} 32... Kxh6 {[%clk
0:00:20.8]} 33. Qf4+ {[%clk 0:00:36.1]} 33... Qxf4 {[%clk 0:00:20.2]} 34. gxf4
{[%clk 0:00:37]} 1-0